fUST/lending_fUST_20250604
["ID","MTS","AMOUNT","RATE_DAILY","PERIOD"]
[364119224,1749011432270,-667.3736537,0.00019093,2]
[364119225,1749011432279,-164.641114,0.00019671,2]
[364119226,1749011432288,-167.84415729,0.00019897,2]
[364119227,1749011432297,-500.0,0.00019973,2]
[364119228,1749011432307,-151.0,0.00019986,2]
[364119229,1749011432316,-440.0,0.00019995,2]
[364119230,1749011432326,-440.0,0.00019995,2]
[364119231,1749011432345,-440.0,0.00019995,2]
[364119232,1749011432358,-440.0,0.00019995,2]
[364119233,1749011432373,-483.66223302,0.00019995,2]
[364119234,1749011432383,-440.0,0.00019995,2]
[364119235,1749011432394,-440.0,0.00019995,2]
[364119236,1749011432404,-440.0,0.00019995,2]
[364119237,1749011432415,-430.0,0.00019995,2]
[364119238,1749011432426,-842.5625,0.00019995,2]
[364119239,1749011432435,-160.0,0.00019995,2]
[364119240,1749011432446,-160.0,0.00019995,2]
[364119241,1749011432457,-229.45591648,0.00019995,2]
[364119243,1749011432467,-4255.72427766,0.00019995,2]
[364119246,1749011432489,-8417.21794421,0.00019995,2]
[364119247,1749011432500,-440.0,0.00019996,2]
[364119248,1749011432511,-440.0,0.00019996,2]
[364119249,1749011432520,-440.0,0.00019996,2]
[364119250,1749011432530,-430.0,0.00019996,2]
[364119251,1749011432540,-440.0,0.00019996,2]
[364119252,1749011432550,-430.0,0.00019996,2]
[364119253,1749011432561,-440.0,0.00019996,2]
[364119254,1749011432571,-440.0,0.00019996,2]
[364119255,1749011432581,-440.0,0.00019996,2]
[364119256,1749011432592,-440.0,0.00019996,2]
[364119257,1749011432602,-440.0,0.00019996,2]
[364119258,1749011432612,-156.12328826,0.00019996,2]
[364119259,1749011432622,-440.0,0.00019996,2]
[364119260,1749011432633,-440.0,0.00019996,2]
[364119261,1749011432643,-430.0,0.00019996,2]
[364119262,1749011432653,-430.0,0.00019996,2]
[364119263,1749011432664,-440.0,0.00019996,2]
[364119264,1749011432674,-287.80848813,0.00019996,2]
[364119265,1749011432683,-440.0,0.00019996,2]
[364119266,1749011432694,-305.28709258,0.00019997,2]
[364119267,1749011432703,-276.73498383,0.00019997,2]
[364119268,1749011432714,-471.17798314,0.00019997,2]
[364119269,1749011432724,-467.60161441,0.00019997,2]
[364119270,1749011432734,-455.36832142,0.00019997,2]
[364119271,1749011432744,-455.9237474,0.00019997,2]
[364119272,1749011432754,-430.0,0.00019997,2]
[364119273,1749011432763,-329.57356708,0.00019997,2]
[364119274,1749011432773,-440.0,0.00019997,2]
[364119275,1749011432783,-463.00167005,0.00019997,2]
[364119276,1749011432792,-430.0,0.00019997,2]
[364119277,1749011432802,-446.69903686,0.00019997,2]
[364119278,1749011432813,-449.37118235,0.00019997,2]
[364119279,1749011432823,-430.0,0.00019997,2]
[364119280,1749011432833,-440.0,0.00019997,2]
[364119281,1749011432843,-440.0,0.00019997,2]
[364119282,1749011432853,-486.72459897,0.00019997,2]
[364119283,1749011432862,-440.0,0.00019997,2]
[364119284,1749011432872,-500.0,0.00019997,2]
[364119285,1749011432882,-440.0,0.00019997,2]
[364119286,1749011432891,-440.0,0.00019997,2]
[364119287,1749011432901,-440.0,0.00019997,2]
[364119288,1749011432910,-440.0,0.00019997,2]
[364119289,1749011432920,-440.0,0.00019997,2]
[364119290,1749011432930,-448.25519059,0.00019997,2]
[364119291,1749011432940,-440.0,0.00019997,2]
[364119292,1749011432954,-440.0,0.00019997,2]
[364119293,1749011432970,-440.0,0.00019997,2]
[364119294,1749011432980,-440.0,0.00019997,2]
[364119295,1749011432990,-440.0,0.00019997,2]
[364119296,1749011433000,-440.0,0.00019997,2]
[364119297,1749011433011,-440.0,0.00019997,2]
[364119298,1749011433021,-474.48,0.00019997,2]
[364119299,1749011433031,-440.0,0.00019997,2]
[364119300,1749011433041,-440.0,0.00019997,2]
[364119301,1749011433051,-440.0,0.00019997,2]
[364119302,1749011433062,-535.41570203,0.00019997,2]
[364119303,1749011433072,-430.0,0.00019997,2]
[364119304,1749011433082,-440.0,0.00019997,2]
[364119305,1749011433092,-440.0,0.00019997,2]
[364119306,1749011433102,-440.0,0.00019997,2]
[364119307,1749011433113,-440.0,0.00019997,2]
[364119308,1749011433122,-440.0,0.00019997,2]
[364119309,1749011433133,-440.0,0.00019997,2]
[364119310,1749011433143,-440.0,0.00019997,2]
[364119311,1749011433153,-440.0,0.00019997,2]
[364119312,1749011433163,-440.0,0.00019997,2]
[364119313,1749011433173,-440.0,0.00019997,2]
[364119314,1749011433183,-440.0,0.00019997,2]
[364119315,1749011433193,-440.0,0.00019997,2]
[364119316,1749011433204,-440.0,0.00019997,2]
[364119317,1749011433214,-440.0,0.00019997,2]
[364119318,1749011433224,-440.0,0.00019997,2]
[364119319,1749011433234,-440.0,0.00019997,2]
[364119320,1749011433244,-444.10244271,0.00019997,2]
[364119321,1749011433255,-430.0,0.00019997,2]
[364119322,1749011433264,-479.39445078,0.00019997,2]
[364119323,1749011433274,-440.0,0.00019997,2]
[364119324,1749011433284,-440.0,0.00019997,2]
[364119325,1749011433295,-437.53505231,0.00019997,2]
[364119326,1749011433306,-552.14016957,0.00019997,2]
[364119327,1749011433316,-440.0,0.00019997,2]
[364119328,1749011433326,-440.0,0.00019997,2]
[364119329,1749011433337,-364.50839689,0.00019998,2]
[364119330,1749011433347,-440.0,0.00019998,2]
[364119331,1749011433358,-440.0,0.00019998,2]
[364119332,1749011433552,-440.0,0.00019998,2]
[364119333,1749011433564,-440.0,0.00019998,2]
[364119334,1749011433576,-440.0,0.00019998,2]
[364119335,1749011433586,-440.0,0.00019998,2]
[364119336,1749011433596,-503.10703841,0.00019998,2]
[364119337,1749011433605,-440.0,0.00019998,2]
[364119338,1749011433615,-440.0,0.00019998,2]
[364119339,1749011433625,-440.0,0.00019998,2]
[364119340,1749011433636,-440.0,0.00019998,2]
[364119341,1749011433647,-440.0,0.00019998,2]
[364119342,1749011433661,-553.42206027,0.00019998,2]
[364119343,1749011433671,-272.79873582,0.00019998,2]
[364119344,1749011433683,-452.46870699,0.00019998,2]
[364119345,1749011433693,-440.0,0.00019998,2]
[364119346,1749011433702,-439.3461718,0.00019998,2]
[364119347,1749011433712,-440.0,0.00019998,2]
[364119348,1749011433722,-440.0,0.00019998,2]
[364119349,1749011433731,-440.0,0.00019998,2]
[364119350,1749011433741,-440.0,0.00019998,2]
[364119351,1749011433751,-480.87527329,0.00019998,2]
[364119352,1749011433760,-528.25796201,0.00019998,2]
[364119353,1749011433771,-440.0,0.00019998,2]
[364119354,1749011433781,-444.00965212,0.00019998,2]
[364119355,1749011433791,-440.0,0.00019998,2]
[364119356,1749011433801,-346.90952662,0.00019998,2]
[364119357,1749011433812,-440.0,0.00019998,2]
[364119358,1749011433823,-205.531,0.00019998,2]
[364119359,1749011433834,-406.23195361,0.00019998,2]
[364119360,1749011433843,-469.06980403,0.00019998,2]
[364119361,1749011433854,-468.80741264,0.00019998,2]
[364119362,1749011433864,-359.6524299,0.00019998,2]
[364119363,1749011433873,-430.0,0.00019998,2]
[364119364,1749011433883,-459.78178476,0.00019998,2]
[364119365,1749011433893,-389.0379156,0.00019998,2]
[364119366,1749011433903,-447.38050556,0.00019998,2]
[364119367,1749011433913,-443.86399462,0.00019998,2]
[364119368,1749011433923,-439.71912054,0.00019998,2]
[364119369,1749011433933,-438.59038416,0.00019998,2]
[364119370,1749011433943,-230.37488434,0.00019998,2]
[364119371,1749011433952,-456.03039921,0.00019998,2]
[364119372,1749011433962,-473.58332391,0.00019998,2]
[364119373,1749011433973,-455.07831358,0.00019998,2]
[364119374,1749011433983,-433.83775615,0.00019998,2]
[364119375,1749011433992,-435.55230765,0.00019998,2]
[364119376,1749011434002,-435.76003045,0.00019998,2]
[364119377,1749011434012,-444.78993567,0.00019998,2]
[364119378,1749011434023,-434.96511492,0.00019998,2]
[364119379,1749011434032,-444.84748547,0.00019998,2]
[364119380,1749011434042,-413.42694037,0.00019998,2]
[364119381,1749011434052,-481.6683806,0.00019998,2]
[364119382,1749011434062,-438.07547243,0.00019998,2]
[364119383,1749011434072,-437.48863402,0.00019998,2]
[364119384,1749011434082,-437.22991149,0.00019998,2]
[364119385,1749011434092,-309.24086005,0.00019998,2]
[364119386,1749011434102,-250.02680162,0.00019998,2]
[364119387,1749011434111,-432.25929326,0.00019998,2]
[364119388,1749011434121,-441.50488463,0.00019998,2]
[364119389,1749011434131,-437.65138513,0.00019998,2]
[364119390,1749011434141,-436.9226561,0.00019998,2]
[364119391,1749011434151,-203.01830762,0.00019998,2]
[364119392,1749011434162,-443.39317484,0.00019998,2]
[364119393,1749011434171,-438.48335332,0.00019998,2]
[364119394,1749011434180,-442.23065954,0.00019998,2]
[364119395,1749011434190,-435.69290196,0.00019998,2]
[364119396,1749011434200,-339.8395354,0.00019998,2]
[364119397,1749011434210,-348.92570752,0.00019998,2]
[364119398,1749011434219,-405.77566127,0.00019998,2]
[364119399,1749011434229,-435.12578765,0.00019998,2]
[364119400,1749011434238,-438.97375871,0.00019998,2]
[364119401,1749011434250,-383.03899556,0.00019998,2]
[364119402,1749011434260,-430.0,0.00019998,2]
[364119403,1749011434270,-553.87524028,0.00019998,2]
[364119404,1749011434280,-440.0,0.00019998,2]
[364119405,1749011434290,-410.33274109,0.00019998,2]
[364119406,1749011434300,-440.0,0.00019998,2]
[364119407,1749011434310,-443.65162948,0.00019998,2]
[364119408,1749011434320,-440.0,0.00019998,2]
[364119409,1749011434330,-434.50842756,0.00019998,2]
[364119410,1749011434340,-440.0,0.00019998,2]
[364119411,1749011434350,-438.09605428,0.00019998,2]
[364119412,1749011434359,-438.11023746,0.00019998,2]
[364119413,1749011434373,-436.53179164,0.00019998,2]
[364119414,1749011434383,-452.07396293,0.00019998,2]
[364119415,1749011434393,-440.0,0.00019998,2]
[364119416,1749011434403,-412.50701214,0.00019998,2]
[364119417,1749011434413,-440.17184937,0.00019998,2]
[364119418,1749011434423,-445.53559663,0.00019998,2]
[364119419,1749011434433,-435.45894896,0.00019998,2]
[364119420,1749011434442,-443.35532646,0.00019998,2]
[364119421,1749011434453,-450.21283115,0.00019998,2]
[364119422,1749011434463,-440.0,0.00019998,2]
[364119423,1749011434473,-437.77962747,0.00019998,2]
[364119424,1749011434484,-163.26376003,0.00019998,2]
[364119425,1749011434494,-446.50383949,0.00019998,2]
[364119426,1749011434505,-500.0,0.00019998,2]
[364119427,1749011434514,-500.0,0.00019998,2]
[364119428,1749011434524,-448.60435069,0.00019998,2]
[364119429,1749011434534,-440.0,0.00019998,2]
[364119430,1749011434544,-440.0,0.00019998,2]
[364119431,1749011434554,-430.0,0.00019998,2]
[364119432,1749011434563,-440.0,0.00019998,2]
[364119433,1749011434574,-435.53669311,0.00019998,2]
[364119434,1749011434584,-436.38140093,0.00019998,2]
[364119435,1749011434593,-451.44890983,0.00019998,2]
[364119436,1749011434603,-440.0,0.00019998,2]
[364119437,1749011434613,-440.0,0.00019998,2]
[364119438,1749011434622,-284.42173901,0.00019998,2]
[364119439,1749011434632,-303.79797614,0.00019998,2]
[364119440,1749011434643,-430.0,0.00019998,2]
[364119441,1749011434653,-430.0,0.00019998,2]
[364119442,1749011434662,-445.51749135,0.00019998,2]
[364119443,1749011434672,-440.0,0.00019998,2]
[364119444,1749011434682,-324.88649336,0.00019998,2]
[364119445,1749011434691,-205.91845036,0.00019998,2]
[364119446,1749011434701,-440.0,0.00019998,2]
[364119447,1749011434711,-430.0,0.00019998,2]
[364119448,1749011434720,-430.0,0.00019998,2]
[364119449,1749011434730,-440.0,0.00019998,2]
[364119450,1749011434740,-445.2563794,0.00019998,2]
[364119451,1749011434751,-361.16976536,0.00019998,2]
[364119452,1749011434762,-408.57671542,0.00019998,2]
[364119453,1749011434771,-348.30506282,0.00019998,2]
[364119454,1749011434781,-410.84531466,0.00019998,2]
[364119455,1749011434791,-379.48186606,0.00019998,2]
[364119456,1749011434801,-440.0,0.00019998,2]
[364119457,1749011434812,-440.0,0.00019999,2]
[364119458,1749011434822,-209.30534601,0.00019999,2]
[364119459,1749011434831,-440.0,0.00019999,2]
[364119460,1749011434842,-465.62182775,0.00019999,2]
[364119461,1749011434852,-440.09832023,0.00019999,2]
[364119462,1749011434868,-458.47684886,0.00019999,2]
[364119463,1749011434884,-460.42861983,0.00019999,2]
[364119464,1749011434895,-463.70363471,0.00019999,2]
[364119465,1749011434905,-440.0,0.00019999,2]
[364119466,1749011434916,-350.43960584,0.00019999,2]
[364119467,1749011434927,-440.0,0.00019999,2]
[364119468,1749011434937,-440.0,0.00019999,2]
[364119469,1749011434948,-465.83897251,0.00019999,2]
[364119470,1749011434959,-430.0,0.00019999,2]
[364119471,1749011434968,-564.39349684,0.00019999,2]
[364119472,1749011434978,-244.01696036,0.00019999,2]
[364119473,1749011434990,-430.0,0.00019999,2]
[364119474,1749011435003,-430.0,0.00019999,2]
[364119475,1749011435013,-522.99473604,0.00019999,2]
[364119476,1749011435024,-453.10293168,0.00019999,2]
[364119477,1749011435035,-430.0,0.00019999,2]
[364119478,1749011435046,-440.0,0.00019999,2]
[364119479,1749011435057,-440.0,0.00019999,2]
[364119480,1749011435067,-440.0,0.00019999,2]
[364119481,1749011435078,-440.0,0.00019999,2]
[364119482,1749011435089,-440.0,0.00019999,2]
[364119483,1749011435099,-459.00850197,0.00019999,2]
[364119484,1749011435110,-1857.40963324,0.0002,2]
[364119485,1749011435121,-235.846588,0.00020187,2]
[364119486,1749011435131,-500.0,0.00020191,2]
[364119487,1749011435141,-500.0,0.00020191,2]
[364119488,1749011435151,-427.835962,0.00020191,2]
[364119489,1749011435160,-500.0,0.00020191,2]
[364119490,1749011435170,-219.22,0.00020262,3]
[364119491,1749011435180,-657.66,0.00020262,3]
[364119492,1749011435190,-440.0,0.00020269,2]
[364119493,1749011435200,-440.0,0.00020269,2]
[364119494,1749011435210,-428.83545693,0.00020269,2]
[364119495,1749011435219,-440.0,0.00020269,2]
[364119496,1749011435229,-440.0,0.00020269,2]
[364119497,1749011435239,-426.54954192,0.00020269,2]
[364119498,1749011435249,-442.70807287,0.00020269,2]
[364119499,1749011435264,-440.0,0.0002027,2]
[364119500,1749011435275,-440.0,0.0002027,2]
[364119501,1749011435285,-440.0,0.0002027,2]
[364119502,1749011435295,-440.0,0.0002027,2]
[364119503,1749011435305,-440.0,0.0002027,2]
[364119504,1749011435315,-420.0,0.0002027,2]
[364119505,1749011435329,-420.0,0.0002027,2]
[364119506,1749011435338,-440.0,0.0002027,2]
[364119507,1749011435348,-420.0,0.0002027,2]
[364119508,1749011435358,-420.0,0.0002027,2]
[364119509,1749011435372,-440.0,0.0002027,2]
[364119510,1749011435383,-440.0,0.0002027,2]
[364119511,1749011435393,-440.0,0.00020271,2]
[364119512,1749011435403,-420.0,0.00020271,2]
[364119513,1749011435414,-465.10970268,0.00020271,2]
[364119514,1749011435425,-174.87,0.00020271,2]
[364119515,1749011435435,-500.0,0.00020271,2]
[364119516,1749011435446,-420.0,0.00020271,2]
[364119517,1749011435457,-440.0,0.00020271,2]
[364119518,1749011435468,-280.42,0.00020271,2]
[364119519,1749011435480,-440.0,0.00020271,2]
[364119520,1749011435491,-440.0,0.00020271,2]
[364119521,1749011435503,-440.0,0.00020271,2]
[364119522,1749011435512,-420.0,0.00020271,2]
[364119523,1749011435522,-440.0,0.00020271,2]
[364119524,1749011435532,-440.0,0.00020271,2]
[364119525,1749011435542,-436.24030811,0.00020271,2]
[364119526,1749011435552,-506.11046977,0.00020271,2]
[364119527,1749011435562,-500.28330677,0.00020271,2]
[364119528,1749011435571,-446.15336845,0.00020271,2]
[364119529,1749011435581,-440.0,0.00020271,2]
[364119530,1749011435591,-440.0,0.00020271,2]
[364119531,1749011435602,-442.27572995,0.00020271,2]
[364119532,1749011435612,-453.91760577,0.00020271,2]
[364119533,1749011435624,-440.0,0.00020271,2]
[364119534,1749011435634,-440.0,0.00020271,2]
[364119535,1749011435644,-440.0,0.00020271,2]
[364119536,1749011435655,-440.0,0.00020271,2]
[364119537,1749011435666,-440.0,0.00020271,2]
[364119538,1749011435676,-440.0,0.00020271,2]
[364119539,1749011435686,-443.019275,0.00020271,2]
[364119540,1749011435696,-440.0,0.00020271,2]
[364119541,1749011435706,-440.0,0.00020271,2]
[364119542,1749011435716,-440.0,0.00020271,2]
[364119543,1749011435726,-191.23,0.00020271,2]
[364119544,1749011435736,-430.64003937,0.00020271,2]
[364119545,1749011435745,-420.0,0.00020271,2]
[364119546,1749011435756,-440.0,0.00020271,2]
[364119547,1749011435768,-440.0,0.00020271,2]
[364119548,1749011435780,-447.49054091,0.00020271,2]
[364119549,1749011435796,-440.0,0.00020271,2]
[364119550,1749011435809,-440.0,0.00020271,2]
[364119551,1749011435820,-480.22709377,0.00020272,2]
[364119552,1749011435831,-440.0,0.00020272,2]
[364119553,1749011435841,-443.92977764,0.00020272,2]
[364119554,1749011435852,-497.16162744,0.00020272,2]
[364119555,1749011435861,-303.84760298,0.00020272,2]
[364119556,1749011435871,-440.0,0.00020272,2]
[364119557,1749011435881,-517.67367949,0.00020272,2]
[364119558,1749011435891,-262.98759906,0.00020272,2]
[364119559,1749011435902,-440.0,0.00020272,2]
[364119560,1749011435913,-533.89068475,0.00020272,2]
[364119561,1749011435923,-440.0,0.00020272,2]
[364119562,1749011435934,-539.26152659,0.00020272,2]
[364119563,1749011435945,-453.94134968,0.00020272,2]
[364119564,1749011435956,-440.0,0.00020272,2]
[364119565,1749011435966,-491.47678844,0.00020272,2]
[364119566,1749011435976,-431.42446355,0.00020272,2]
[364119567,1749011435988,-443.82452413,0.00020272,2]
[364119568,1749011435998,-518.32884154,0.00020272,2]
[364119569,1749011436010,-492.45465736,0.00020272,2]
[364119570,1749011436019,-420.0,0.00020272,2]
[364119571,1749011436029,-440.0,0.00020272,2]
[364119572,1749011436039,-440.0,0.00020272,2]
[364119573,1749011436049,-440.0,0.00020272,2]
[364119574,1749011436058,-430.0,0.00020272,2]
[364119575,1749011436068,-440.0,0.00020272,2]
[364119576,1749011436078,-500.0,0.00020272,2]
[364119577,1749011436087,-440.0,0.00020272,2]
[364119578,1749011436098,-440.0,0.00020272,2]
[364119579,1749011436108,-440.0,0.00020272,2]
[364119580,1749011436118,-420.0,0.00020272,2]
[364119581,1749011436129,-440.0,0.00020272,2]
[364119582,1749011436138,-190.4705332,0.00020272,2]
[364119583,1749011436148,-438.4887307,0.00020272,2]
[364119584,1749011436158,-440.0,0.00020272,2]
[364119585,1749011436168,-354.06758021,0.00020273,2]
[364119586,1749011436178,-440.0,0.00020273,2]
[364119587,1749011436188,-420.0,0.00020273,2]
[364119588,1749011436199,-441.95935279,0.00020273,2]
[364119589,1749011436210,-458.97080282,0.00020273,2]
[364119590,1749011436222,-420.0,0.00020273,2]
[364119591,1749011436232,-440.0,0.00020273,2]
[364119592,1749011436243,-254.81493406,0.00020273,2]
[364119593,1749011436253,-447.32363107,0.00020273,2]
[364119594,1749011436263,-437.71353273,0.00020273,2]
[364119595,1749011436274,-166.0,0.00020274,2]
[364119596,1749011436286,-1000.0,0.00020331,2]
[364119597,1749011436295,-501.55177057,0.00020336,2]
[364119598,1749011436306,-250.57348068,0.00020507,2]
[364119599,1749011436316,-261.39096435,0.00020507,2]
[364119600,1749011436327,-500.0,0.00020507,2]
[364119601,1749011436338,-1000.0,0.00020521,2]
[364119602,1749011436348,-440.0,0.00020543,2]
[364119603,1749011436359,-440.0,0.00020543,2]
[364119604,1749011436373,-440.0,0.00020544,2]
[364119605,1749011436384,-440.0,0.00020544,2]
[364119606,1749011436394,-440.0,0.00020544,2]
[364119607,1749011436404,-440.0,0.00020544,2]
[364119608,1749011436414,-440.0,0.00020544,2]
[364119609,1749011436423,-410.0,0.00020544,2]
[364119610,1749011436432,-410.0,0.00020544,2]
[364119611,1749011436442,-440.0,0.00020544,2]
[364119612,1749011436452,-440.0,0.00020545,2]
[364119613,1749011436462,-500.0,0.00020545,2]
[364119614,1749011436472,-200.95,0.00020545,2]
[364119615,1749011436482,-410.0,0.00020545,2]
[364119616,1749011436492,-440.0,0.00020545,2]
[364119617,1749011436502,-440.0,0.00020545,2]
[364119618,1749011436512,-452.33591743,0.00020545,2]
[364119619,1749011436522,-460.78162803,0.00020545,2]
[364119620,1749011436532,-410.0,0.00020545,2]
[364119621,1749011436691,-410.0,0.00020545,2]
[364119622,1749011436724,-440.0,0.00020545,2]
[364119623,1749011436735,-558.8,0.00020545,2]
[364119624,1749011436746,-159.87616454,0.00020545,2]
[364119625,1749011436755,-440.0,0.00020545,2]
[364119626,1749011436766,-440.0,0.00020545,2]
[364119627,1749011436776,-474.78393435,0.00020545,2]
[364119628,1749011436786,-410.0,0.00020545,2]
[364119629,1749011436795,-410.0,0.00020545,2]
[364119630,1749011436805,-440.0,0.00020545,2]
[364119631,1749011436815,-440.0,0.00020545,2]
[364119632,1749011436825,-440.0,0.00020545,2]
[364119633,1749011436834,-410.0,0.00020545,2]
[364119634,1749011436844,-440.0,0.00020545,2]
[364119635,1749011436854,-324.19110086,0.00020546,2]
[364119636,1749011436864,-492.55721097,0.00020546,2]
[364119637,1749011436873,-435.69948605,0.00020546,2]
[364119638,1749011436883,-458.51613927,0.00020546,2]
[364119639,1749011436892,-226.84851619,0.00020546,2]
[364119640,1749011436902,-440.0,0.00020546,2]
[364119641,1749011436912,-440.0,0.00020546,2]
[364119642,1749011436922,-420.0,0.00020546,2]
[364119643,1749011436933,-440.0,0.00020546,2]
[364119644,1749011436945,-440.0,0.00020546,2]
[364119645,1749011436955,-440.0,0.00020546,2]
[364119646,1749011436965,-440.0,0.00020546,2]
[364119647,1749011436975,-440.0,0.00020546,2]
[364119648,1749011436987,-212.85825742,0.00020546,2]
[364119649,1749011436999,-440.0,0.00020547,2]
[364119650,1749011437009,-440.0,0.00020547,2]
[364119651,1749011437018,-490.50891157,0.00020613,2]
[364119652,1749011437029,-500.0,0.00020696,2]
[364119653,1749011437039,-1000.0,0.00020739,2]
[364119654,1749011437048,-440.0,0.00020817,2]
[364119655,1749011437058,-440.0,0.00020817,2]
[364119656,1749011437067,-440.0,0.00020818,2]
[364119657,1749011437077,-440.0,0.00020818,2]
[364119658,1749011437087,-440.0,0.00020818,2]
[364119659,1749011437098,-440.0,0.00020818,2]
[364119660,1749011437108,-440.0,0.00020818,2]
[364119661,1749011437119,-440.0,0.00020818,2]
[364119662,1749011437129,-440.0,0.00020819,2]
[364119663,1749011437139,-500.0,0.00020819,2]
[364119664,1749011437148,-440.0,0.00020819,2]
[364119665,1749011437157,-400.0,0.00020819,2]
[364119666,1749011437167,-400.0,0.00020819,2]
[364119667,1749011437176,-400.0,0.00020819,2]
[364119668,1749011437186,-400.0,0.00020819,2]
[364119669,1749011437195,-400.0,0.00020819,2]
[364119670,1749011437205,-400.0,0.00020819,2]
[364119671,1749011437214,-400.0,0.00020819,2]
[364119672,1749011437223,-440.0,0.00020819,2]
[364119673,1749011437232,-440.0,0.0002082,2]
[364119674,1749011437242,-440.0,0.0002082,2]
[364119675,1749011437252,-440.0,0.0002082,2]
[364119676,1749011437261,-440.0,0.0002082,2]
[364119677,1749011437270,-400.0,0.0002082,2]
[364119678,1749011437281,-440.0,0.0002082,2]
[364119679,1749011437290,-440.0,0.0002082,2]
[364119680,1749011437302,-440.0,0.00020821,2]
[364119681,1749011437311,-333.42,0.00020821,2]
[364119682,1749011437320,-907.84263263,0.000209,4]
[364119683,1749011437330,-907.84263252,0.00021038,4]
[364119684,1749011437340,-1009.7816681,0.00021068,2]
[364119685,1749011437351,-440.0,0.00021091,2]
[364119686,1749011437361,-440.0,0.00021091,2]
[364119687,1749011437372,-440.0,0.00021092,2]
[364119688,1749011437383,-440.0,0.00021092,2]
[364119689,1749011437392,-440.0,0.00021092,2]
[364119690,1749011437402,-440.0,0.00021092,2]
[364119691,1749011437414,-440.0,0.00021092,2]
[364119692,1749011437426,-440.0,0.00021092,2]
[364119693,1749011437435,-440.0,0.00021093,2]
[364119694,1749011437446,-410.0,0.00021093,2]
[364119695,1749011437455,-583.0720684,0.00021093,2]
[364119696,1749011437466,-440.0,0.00021094,2]
[364119697,1749011437475,-440.0,0.00021094,2]
[364119698,1749011437485,-440.0,0.00021094,2]
[364119699,1749011437494,-440.0,0.00021094,2]
[364119700,1749011437503,-440.0,0.00021094,2]
[364119701,1749011437512,-440.0,0.00021094,2]
[364119702,1749011437520,-165.03508609,0.00021095,2]
[364119703,1749011437530,-907.84263252,0.00021176,4]
[364119704,1749011437538,-500.0,0.00021225,2]
[364119705,1749011437546,-500.0,0.00021244,2]
[364119706,1749011437554,-1500.0,0.00021287,2]
[364119707,1749011437563,-907.84263252,0.00021314,5]
[364119708,1749011437572,-440.0,0.00021365,2]
[364119709,1749011437581,-440.0,0.00021365,2]
[364119710,1749011437590,-440.0,0.00021366,2]
[364119711,1749011437599,-440.0,0.00021366,2]
[364119712,1749011437609,-440.0,0.00021366,2]
[364119713,1749011437618,-440.0,0.00021366,2]
[364119714,1749011437627,-440.0,0.00021366,2]
[364119715,1749011437637,-440.0,0.00021366,2]
[364119716,1749011437647,-200.34686272,0.00021367,2]
[364119717,1749011437656,-440.0,0.00021368,2]
[364119718,1749011437664,-339.58855895,0.00021368,2]
[364119719,1749011437673,-297.34,0.00021368,2]
[364119720,1749011437682,-440.0,0.00021368,2]
[364119721,1749011437689,-440.0,0.00021368,2]
[364119722,1749011437697,-440.0,0.00021368,2]
[364119723,1749011437707,-692.67,0.000214,2]
[364119724,1749011437716,-500.0,0.00021425,2]
[364119725,1749011437726,-430.0,0.00021426,2]
[364119726,1749011437736,-504.23435639,0.00021426,2]